Workbook

Sheet InputSheet
A1: Parameters | B1: Value | C1: Comment | G1: A-Matrix==> | J1: To -->
A2: nDim | B2: 4 | C2: Dim. of problem=r+1 | E2: ni | F2: Pi(t) | G2: Pi | J2: 0 | K2: 1 | L2: 2 | M2: 3 | N2: 4 | O2: 5 | P2: 6 | Q2: 7 | R2: 8 | S2: 9
A3: MaxTime | B3: =tau -> 4380 | C3: For time dep. solut. | E3: 0 | F3: 0.0001411788398 | G3: 1 | H3: From | I3: 0 | L3: 0 | M3: 0
A4: Initial state | B4: 3 | C4: Initial state | E4: 0 | F4: 0.0005827791174 | G4: 0 | H4: ¯ | I4: 1 | J4: =lambda_DU_i+nu*p -> 3.25e-06 | M4: 0
A5: State2Follow | B5: 0 | C5: State to plot | E5: 0 | F5: 0.01966270618 | G5: 0 | I5: 2 | J5: =nu*p^2 -> 1.25e-07 | K5: =2*lambda_DU_i+nu*BINOMDIST(1,2,p,FALSE) -> 6.25e-06
A6: lambda_DU_i | B6: 3e-06 | C6: Failure rate | E6: 0 | F6: 0.9796329141 | G6: 0 | I6: 3 | J6: =nu*p^3 -> 6.25e-08 | K6: =nu*BINOMDIST(2,3,p,FALSE) -> 1.875e-07 | L6: =3*lambda_DU_i+nu*BINOMDIST(1,3,p,FALSE) -> 9.1875e-06
A7: nu | B7: 5e-07 | C7: Sjokkrate | I7: 4
A8: p | B8: 0.5 | C8: Pr(død ves sjokk) | I8: 5
A9: beta | B9: 0.03846 | C9: Beta i beta-faktor/PDS | I9: 6
A10: tau | B10: =6*730 -> 4380 | I10: 7
A11: C_KooN | B11: 2 | I11: 8
I12: 9
G14: t | H14: P0(t)
G15: 0 | H15: 0
A16: lambda | B16: =lambda_DU_i+nu*beta -> 3.01923e-06 | C16: =_xlfn.FORMULATEXT(B16) -> =lambda_DU_i+nu*beta | G16: 175.1999969 | H16: 1.096779579e-05
A17: PDS_I | B17: =(lambda_DU_i*tau)^2 -> 0.0001726596 | C17: =_xlfn.FORMULATEXT(B17) -> =(lambda_DU_i*tau)^2 | G17: 350.3999634 | H17: 2.197233698e-05
A18: PDS_C | B18: =lambda*beta*tau*C_KooN/2 -> 0.0005086037858 | C18: =lambda*beta*tau*C_KooN/2 | G18: 525.5999146 | H18: 3.301451579e-05
A19: PFD=PDS_I+C | B19: =SUM(B17:B18) -> 0.0006812633858 | C19: =SUM(B17:B18) | G19: 700.7998657 | H19: 4.409521716e-05
A20: PFD=Markov | B20: =Pt_0+Pt_1 -> 0.0007239579572 | C20: =Pt_0+Pt_1 | G20: 875.9998169 | H20: 5.521532512e-05
A21: PFDDirect | B21: =(lambda_DU_i*tau)^2+nu*(BINOMDIST(3,3,p,FALSE)+BINOMDIST(2,3,p,FALSE))*tau/2 -> 0.0007201596 | C21: =(lambda_DU_i*tau)^2+nu*(BINOMDIST(3,3,p,FALSE)+BINOMDIST(2,3,p,FALSE))*tau/2 | G21: 1051.199829 | H21: 6.637573097e-05
G22: 1226.400024 | H22: 7.757728599e-05
G23: 1401.60022 | H23: 8.882089605e-05
G24: 1576.800415 | H24: 0.0001001074052
G25: 1752.00061 | H25: 0.0001114376937
G26: 1927.200806 | H26: 0.0001228126494
G27: 2102.400879 | H27: 0.0001342330797
A28: mu | B28: =1/8 -> 0.125 | C28: Repair rate | G28: 2277.601074 | H28: 0.0001456998871
G29: 2452.80127 | H29: 0.0001572139299
G30: 2628.001465 | H30: 0.0001687760378
G31: 2803.20166 | H31: 0.0001803870546
G32: 2978.401855 | H32: 0.0001920478389
G33: 3153.602051 | H33: 0.0002037592494
G34: 3328.802246 | H34: 0.0002155221155
G35: 3504.002441 | H35: 0.0002273372666
G36: 3679.202637 | H36: 0.0002392055467
G37: 3854.402832 | H37: 0.0002511277853
G38: 4029.603027 | H38: 0.0002631048264
G39: 4204.802734 | H39: 0.0002751374268
G40: 4380.001953 | H40: 0.0002872265177
G41: Average | H41: =AVERAGE(H15:H40) -> 0.0001412759775

Sheet Verify
C1: To -->
C2: 0 | D2: 1 | E2: 2 | F2: 3 | G2: 4 | H2: 5 | I2: 6 | J2: 7 | K2: 8 | L2: 9
A3: From | B3: 0 | C3: =ShowFormula(InputSheet!J3) ->  | D3: =ShowFormula(InputSheet!K3) ->  | E3: =ShowFormula(InputSheet!L3) -> 0 | F3: =ShowFormula(InputSheet!M3) -> 0 | G3: =ShowFormula(InputSheet!N3) ->  | H3: =ShowFormula(InputSheet!O3) ->  | I3: =ShowFormula(InputSheet!P3) ->  | J3: =ShowFormula(InputSheet!Q3) ->  | K3: =ShowFormula(InputSheet!R3) ->  | L3: =ShowFormula(InputSheet!S3) -> 
A4: ¯ | B4: 1 | C4: =ShowFormula(InputSheet!J4) -> =lambda_DU_i+nu*p | D4: =ShowFormula(InputSheet!K4) ->  | E4: =ShowFormula(InputSheet!L4) ->  | F4: =ShowFormula(InputSheet!M4) -> 0 | G4: =ShowFormula(InputSheet!N4) ->  | H4: =ShowFormula(InputSheet!O4) ->  | I4: =ShowFormula(InputSheet!P4) ->  | J4: =ShowFormula(InputSheet!Q4) ->  | K4: =ShowFormula(InputSheet!R4) ->  | L4: =ShowFormula(InputSheet!S4) -> 
B5: 2 | C5: =ShowFormula(InputSheet!J5) -> =nu*p^2 | D5: =ShowFormula(InputSheet!K5) -> =2*lambda_DU_i+nu*BINOMDIST(1,2,p,FALSE) | E5: =ShowFormula(InputSheet!L5) ->  | F5: =ShowFormula(InputSheet!M5) ->  | G5: =ShowFormula(InputSheet!N5) ->  | H5: =ShowFormula(InputSheet!O5) ->  | I5: =ShowFormula(InputSheet!P5) ->  | J5: =ShowFormula(InputSheet!Q5) ->  | K5: =ShowFormula(InputSheet!R5) ->  | L5: =ShowFormula(InputSheet!S5) -> 
B6: 3 | C6: =ShowFormula(InputSheet!J6) -> =nu*p^3 | D6: =ShowFormula(InputSheet!K6) -> =nu*BINOMDIST(2,3,p,FALSE) | E6: =ShowFormula(InputSheet!L6) -> =3*lambda_DU_i+nu*BINOMDIST(1,3,p,FALSE) | F6: =ShowFormula(InputSheet!M6) ->  | G6: =ShowFormula(InputSheet!N6) ->  | H6: =ShowFormula(InputSheet!O6) ->  | I6: =ShowFormula(InputSheet!P6) ->  | J6: =ShowFormula(InputSheet!Q6) ->  | K6: =ShowFormula(InputSheet!R6) ->  | L6: =ShowFormula(InputSheet!S6) -> 
B7: 4 | C7: =ShowFormula(InputSheet!J7) ->  | D7: =ShowFormula(InputSheet!K7) ->  | E7: =ShowFormula(InputSheet!L7) ->  | F7: =ShowFormula(InputSheet!M7) ->  | G7: =ShowFormula(InputSheet!N7) ->  | H7: =ShowFormula(InputSheet!O7) ->  | I7: =ShowFormula(InputSheet!P7) ->  | J7: =ShowFormula(InputSheet!Q7) ->  | K7: =ShowFormula(InputSheet!R7) ->  | L7: =ShowFormula(InputSheet!S7) -> 
B8: 5 | C8: =ShowFormula(InputSheet!J8) ->  | D8: =ShowFormula(InputSheet!K8) ->  | E8: =ShowFormula(InputSheet!L8) ->  | F8: =ShowFormula(InputSheet!M8) ->  | G8: =ShowFormula(InputSheet!N8) ->  | H8: =ShowFormula(InputSheet!O8) ->  | I8: =ShowFormula(InputSheet!P8) ->  | J8: =ShowFormula(InputSheet!Q8) ->  | K8: =ShowFormula(InputSheet!R8) ->  | L8: =ShowFormula(InputSheet!S8) -> 
B9: 6 | C9: =ShowFormula(InputSheet!J9) ->  | D9: =ShowFormula(InputSheet!K9) ->  | E9: =ShowFormula(InputSheet!L9) ->  | F9: =ShowFormula(InputSheet!M9) ->  | G9: =ShowFormula(InputSheet!N9) ->  | H9: =ShowFormula(InputSheet!O9) ->  | I9: =ShowFormula(InputSheet!P9) ->  | J9: =ShowFormula(InputSheet!Q9) ->  | K9: =ShowFormula(InputSheet!R9) ->  | L9: =ShowFormula(InputSheet!S9) -> 
B10: 7 | C10: =ShowFormula(InputSheet!J10) ->  | D10: =ShowFormula(InputSheet!K10) ->  | E10: =ShowFormula(InputSheet!L10) ->  | F10: =ShowFormula(InputSheet!M10) ->  | G10: =ShowFormula(InputSheet!N10) ->  | H10: =ShowFormula(InputSheet!O10) ->  | I10: =ShowFormula(InputSheet!P10) ->  | J10: =ShowFormula(InputSheet!Q10) ->  | K10: =ShowFormula(InputSheet!R10) ->  | L10: =ShowFormula(InputSheet!S10) -> 
B11: 8 | C11: =ShowFormula(InputSheet!J11) ->  | D11: =ShowFormula(InputSheet!K11) ->  | E11: =ShowFormula(InputSheet!L11) ->  | F11: =ShowFormula(InputSheet!M11) ->  | G11: =ShowFormula(InputSheet!N11) ->  | H11: =ShowFormula(InputSheet!O11) ->  | I11: =ShowFormula(InputSheet!P11) ->  | J11: =ShowFormula(InputSheet!Q11) ->  | K11: =ShowFormula(InputSheet!R11) ->  | L11: =ShowFormula(InputSheet!S11) -> 
B12: 9
